bitfinex/quotes_ETHUSD_20250905
["timestamp","ask_amount","ask_price","bid_price","bid_amount"]
[1757042003452,3.0,4314.0,4313.9,5.754]
[1757042007362,3.7599,4314.0,4313.9,5.754]
[1757042007550,4.2208,4314.0,4313.9,5.744]
[1757042007727,6.5388343,4314.0,4313.9,5.744]
[1757042008464,6.5388343,4314.0,4313.9,1.824]
[1757042008627,5.31808804,4313.9,4313.8,0.004]
[1757042009061,6.53888804,4313.9,4313.8,0.004]
[1757042009775,2.31835674,4313.4,4313.3,0.004]
[1757042009970,10.70383077,4313.4,4313.3,0.004]
[1757042010261,11.90145941,4313.4,4313.3,0.004]
[1757042012358,6.07825674,4313.4,4313.3,0.004]
[1757042012971,11.78545941,4313.4,4313.3,0.004]
[1757042013878,11.32455941,4313.4,4313.3,0.004]
[1757042016257,8.55110267,4313.4,4313.3,0.004]
[1757042016463,3.0,4313.4,4313.3,0.0346]
[1757042016676,7.5643984,4313.9,4313.3,0.68916]
[1757042016869,3.0,4313.8,4313.3,2.39716]
[1757042017073,3.0,4313.8,4313.3,1.92796]
[1757042017372,3.0,4313.8,4313.6,0.116]
[1757042018077,3.0,4313.8,4313.7,3.92]
[1757042019280,3.0,4313.8,4313.7,3.9506]
[1757042019854,3.0,4313.8,4313.7,3.92]
[1757042021578,3.7902,4313.8,4313.7,3.92]
[1757042023084,6.10834177,4313.8,4313.7,3.92]
[1757042023588,2.31835674,4313.4,4313.3,5.627]
[1757042023801,11.84395941,4313.4,4313.3,5.627]
[1757042024254,11.35485941,4313.4,4313.3,5.627]
[1757042025567,9.03650267,4313.4,4313.3,5.627]
[1757042025859,8.72120267,4313.4,4313.3,5.627]
[1757042026068,3.0,4313.4,4313.3,5.627]
[1757042026271,3.0,4313.4,4313.3,6.808]
[1757042026470,3.0,4313.4,4313.3,6.3057]
[1757042026763,3.0,4313.4,4313.3,6.3363]
[1757042027357,3.0,4313.4,4313.3,6.808]
[1757042029392,3.0,4313.4,4313.3,6.3363]
[1757042029582,3.0,4313.4,4313.3,5.7736]
[1757042030704,3.3153,4313.4,4313.3,1.828]
[1757042030873,6.10855674,4313.4,4313.3,5.626]
[1757042031897,3.7902,4313.4,4313.3,5.626]
[1757042032698,6.10855674,4313.4,4313.3,5.626]
[1757042033782,3.7902,4313.4,4313.3,5.626]
[1757042035091,3.0,4313.4,4313.3,5.626]
[1757042036179,3.3153,4313.4,4313.3,5.624]
[1757042036380,3.7902,4313.4,4313.3,5.624]
[1757042036579,3.0,4313.4,4313.3,5.624]
[1757042039004,0.001,4313.8,4313.3,6.63848743]
[1757042039220,0.001,4313.8,4313.5,2.318303]
[1757042039415,0.001,4313.8,4313.7,0.116]
[1757042039573,0.001,4313.8,4313.7,0.1466]
[1757042039774,0.001,4313.8,4313.7,1.3029603]
[1757042040198,0.001,4313.8,4313.7,3.62115581]
[1757042040399,0.001,4313.8,4313.7,1.3029603]
[1757042042481,0.001,4313.8,4313.7,3.62115581]
[1757042042689,0.001,4313.8,4313.7,1.3029603]
[1757042043220,0.001,4313.8,4313.7,3.62115581]
[1757042047114,0.001,4313.8,4313.7,0.8006603]
[1757042047320,4.2803,4313.8,4313.7,4.023]
[1757042047608,3.7912,4313.8,4313.7,4.023]
[1757042050395,3.3163,4313.8,4313.7,4.023]
[1757042050822,3.7528,4313.8,4313.7,4.022]
[1757042051531,3.001,4313.8,4313.7,4.022]
[1757042052597,3.4375,4313.8,4313.7,4.022]
[1757042052799,3.001,4313.8,4313.7,4.022]
[1757042053623,3.4375,4313.8,4313.7,4.022]
[1757042054599,3.7273,4313.8,4313.7,4.022]
[1757042057028,3.4375,4313.8,4313.7,4.022]
[1757042057237,3.001,4313.8,4313.7,4.022]
[1757042059213,3.7273,4313.8,4313.7,4.022]
[1757042060745,4.1791,4313.8,4313.7,0.116]
[1757042060904,7.36573868,4313.8,4313.7,4.019]
[1757042061100,7.36573868,4313.8,4313.7,0.116]
[1757042061301,2.31835674,4313.4,4313.3,1.712]
[1757042061516,11.00132588,4313.4,4313.3,5.615]
[1757042062405,8.68296914,4313.4,4313.3,5.615]
[1757042062724,11.00132588,4313.4,4313.3,5.615]
[1757042069257,12.33328407,4313.4,4313.3,5.615]
[1757042069810,12.33328407,4313.4,4313.3,0.004]
[1757042070108,2.31862551,4312.9,4312.6,1.824]
[1757042070307,9.82349465,4312.9,4312.8,2.56]
[1757042070535,11.00159465,4312.9,4312.8,2.56]
[1757042070729,11.93122073,4312.9,4312.8,2.56]
[1757042071241,11.93122073,4312.9,4312.8,3.932]
[1757042076714,11.93122073,4312.9,4312.8,0.029]
[1757042076914,16.43608987,4312.9,4312.8,0.029]
[1757042077123,16.55208987,4312.9,4312.8,0.029]
[1757042078814,9.93949465,4312.9,4312.8,0.029]
[1757042079017,10.72239465,4312.9,4312.8,0.029]
[1757042079419,7.29719465,4312.9,4312.8,3.932]
[1757042079654,10.29719465,4312.9,4312.8,3.932]
[1757042079856,7.29719465,4312.9,4312.8,3.932]
[1757042080232,10.29719465,4312.9,4312.8,3.932]
[1757042080549,10.60639465,4312.9,4312.8,3.932]
[1757042083147,11.92809009,4312.9,4312.8,3.932]
[1757042084350,10.60639465,4312.9,4312.8,3.932]
[1757042088943,11.06349465,4312.9,4312.8,0.029]
[1757042089154,15.56836379,4312.9,4312.8,0.029]
[1757042089351,5.31889435,4312.4,4312.3,0.004]
[1757042089752,3.0,4312.4,4312.3,0.5082]
[1757042090644,3.0,4312.4,4312.3,0.6242]
[1757042092755,3.0,4312.4,4312.3,0.1506]
[1757042093055,3.0,4312.4,4312.3,0.6242]
[1757042094169,3.0,4312.4,4312.3,0.1506]
[1757042096980,3.0,4312.4,4312.3,0.12]
[1757042100492,3.0,4312.4,4312.3,0.1506]
[1757042100771,4.50486914,4312.8,4312.3,1.21982]
[1757042100974,3.0,4312.7,4312.4,0.4736]
[1757042101489,4.50486914,4313.2,4312.6,0.1466]
[1757042101791,0.001,4313.3,4312.8,2.3186731]
[1757042101962,4.50486914,4313.2,4312.8,2.3186731]
[1757042102287,3.0,4313.2,4313.1,0.0306]
[1757042102470,7.50486914,4313.2,4313.1,3.903]
[1757042102874,7.50486914,4313.2,4313.1,4.019]
[1757042103686,3.0,4313.2,4313.1,4.019]
[1757042103886,3.0,4313.2,4313.1,4.5232]
[1757042104678,0.001,4313.3,4313.1,7.52589392]
[1757042104893,0.001,4313.3,4313.1,7.05229392]
[1757042105059,0.001,4313.3,4313.2,0.4736]
[1757042105873,0.001,4313.3,4313.2,0.5042]
[1757042108272,0.001,4313.3,4313.2,0.0306]
[1757042108463,0.001,4313.3,4313.2,0.73583934]
[1757042108874,0.001,4313.3,4313.2,4.60723934]
[1757042109098,0.001,4313.3,4313.2,3.902]
[1757042109977,0.001,4313.3,4313.2,3.9326]
[1757042112910,0.001,4313.3,4313.2,4.397]
[1757042114201,0.001,4313.3,4313.2,3.9326]
[1757042114509,0.001,4313.3,4313.2,3.902]
[1757042114820,0.7404,4313.3,4313.2,3.902]
[1757042114979,0.4413,4313.3,4313.2,3.902]
[1757042115691,0.001,4313.3,4313.2,3.902]
[1757042118610,0.3001,4313.3,4313.2,3.901]
[1757042119340,0.001,4313.3,4313.2,3.901]
[1757042120209,0.001,4313.3,4313.2,3.9316]
[1757042120411,0.001,4313.3,4313.2,5.03261073]
[1757042121133,0.001,4313.3,4313.2,7.35107497]
[1757042121335,0.001,4313.3,4313.2,7.46707497]
[1757042121637,0.001,4313.3,4313.2,7.48627497]
[1757042123416,0.001,4313.3,4313.2,9.82427495]
[1757042123615,0.001,4313.3,4313.2,7.48627497]
[1757042124022,0.001,4313.3,4313.2,9.82427495]
[1757042124722,0.001,4313.3,4313.2,7.48627497]
[1757042125123,0.001,4313.3,4313.2,8.27827497]
[1757042125312,0.001,4313.3,4313.2,9.57827497]
[1757042128742,0.001,4313.3,4313.2,4.75007497]
[1757042128921,0.3001,4313.3,4313.2,1.3]
[1757042129121,1.2248,4313.3,4313.1,5.34]
[1757042129325,0.3001,4313.3,4313.2,3.9]
[1757042129914,1.2248,4313.3,4313.2,3.9]
[1757042131537,0.7404,4313.3,4313.2,3.9]
[1757042135960,0.7404,4313.3,4313.2,6.21846424]
[1757042137833,0.7404,4313.3,4313.2,3.9]
[1757042138758,0.7404,4313.3,4313.2,4.016]
[1757042139956,0.7404,4313.3,4313.2,6.33446424]
[1757042140464,0.7404,4313.3,4313.2,4.016]
[1757042140663,0.7404,4313.3,4313.2,6.33446424]
[1757042140851,0.7404,4313.3,4313.2,0.116]
[1757042141058,0.7404,4313.3,4313.2,4.015]
[1757042141254,0.7404,4313.3,4313.2,0.116]
[1757042141457,1.196,4313.3,4313.2,0.116]
[1757042141656,1.84048263,4313.3,4313.2,0.116]
[1757042141844,1.84048263,4313.3,4313.2,4.015]
[1757042142042,1.196,4313.3,4313.2,4.015]
[1757042142859,0.7404,4313.3,4313.2,4.015]
[1757042143662,0.4413,4313.3,4313.2,4.015]
[1757042143974,0.7267,4313.3,4313.2,4.015]
[1757042145342,1.1823,4313.3,4313.2,4.015]
[1757042145671,1.1823,4313.3,4313.2,0.116]
[1757042145875,5.31851413,4313.2,4312.8,0.004]
[1757042146056,2.31852794,4313.1,4312.9,3.471]
[1757042146255,0.2854,4313.0,4312.9,3.471]
[1757042146459,1.1971,4313.0,4312.9,3.471]
[1757042147576,0.7415,4313.0,4312.9,3.471]
[1757042148857,0.4561,4313.0,4312.9,3.471]
[1757042150072,0.001,4313.3,4312.9,3.471]
[1757042150276,0.4561,4313.2,4312.9,3.471]
[1757042150579,0.4561,4313.1,4312.9,3.471]
[1757042150781,0.4561,4313.0,4312.9,3.471]
[1757042151152,0.001,4313.3,4313.1,2.31849744]
[1757042151366,0.001,4313.3,4313.2,3.899]
[1757042151775,0.001,4313.3,4313.2,4.3945]
[1757042152163,0.001,4313.3,4313.2,6.71296424]
[1757042153381,0.001,4313.3,4313.2,7.50496424]
[1757042153595,0.001,4313.3,4313.2,7.52416424]
[1757042153812,0.001,4313.3,4313.2,8.60132889]
[1757042153981,0.001,4313.3,4313.2,9.90132889]
[1757042155767,0.001,4313.3,4313.2,10.01732889]
[1757042156191,0.001,4313.3,4313.2,9.99812889]
[1757042156690,0.001,4313.3,4313.2,10.01732889]
[1757042158692,0.001,4313.3,4313.2,9.99812889]
[1757042158901,0.2864,4313.3,4313.2,4.60273515]
[1757042159067,1.1981,4313.3,4313.2,6.21646424]
[1757042160519,0.7425,4313.3,4313.2,6.21646424]
[1757042162184,0.7425,4313.3,4313.2,3.898]
[1757042162598,0.7425,4313.3,4313.2,6.21646424]
[1757042163808,0.4571,4313.3,4313.2,6.66426895]
[1757042164015,0.001,4313.3,4313.2,6.66426895]
[1757042164181,0.001,4313.3,4313.2,6.69486895]
[1757042164385,0.001,4313.3,4313.2,7.15976895]
[1757042164817,0.4571,4313.3,4313.2,6.66326895]
[1757042165690,0.7425,4313.3,4313.2,7.96326895]
[1757042166827,0.4571,4313.3,4313.2,7.96326895]
[1757042167012,0.001,4313.3,4313.2,7.99386895]
[1757042168707,0.001,4313.3,4313.2,7.15876895]
[1757042168908,0.001,4313.3,4313.2,7.27476895]
[1757042170708,0.001,4313.3,4313.2,6.80986895]
[1757042171826,0.001,4313.3,4313.2,7.30536895]
[1757042172546,0.001,4313.3,4313.2,6.80986895]
[1757042172764,0.001,4313.3,4313.2,8.10986895]
[1757042173764,0.001,4313.3,4313.2,8.07926895]
[1757042173926,0.7355,4313.3,4313.2,8.07926895]
[1757042175327,0.4434,4313.3,4313.2,8.07926895]
[1757042176436,0.001,4313.3,4313.2,8.07926895]
[1757042177326,0.7355,4313.3,4313.2,6.33146424]
[1757042177562,1.2272,4313.3,4313.2,0.116]
[1757042177763,1.2272,4313.3,4313.2,4.012]
[1757042178632,6.54561049,4313.3,4313.2,4.012]
[1757042178880,4.2272,4313.3,4313.2,4.012]
[1757042179037,5.33231411,4313.3,4313.2,4.012]
[1757042179964,1.2272,4313.3,4313.2,4.012]
[1757042180379,0.7355,4313.3,4313.2,4.012]
[1757042180964,0.7355,4313.3,4313.2,6.33046424]
[1757042181366,0.2931,4313.3,4313.2,6.33046424]
[1757042181683,0.001,4313.3,4313.2,6.33046424]
[1757042182178,0.001,4313.3,4313.2,6.36106424]
[1757042182490,0.001,4313.3,4313.2,7.22902727]
[1757042183471,0.2931,4313.3,4313.2,2.43446424]
[1757042183673,0.2931,4313.3,4313.2,4.012]
[1757042183674,0.7355,4313.3,4313.2,4.012]
[1757042183886,0.7355,4313.3,4313.2,6.33046424]
[1757042184384,5.73179527,4313.3,4313.2,0.116]
[1757042184587,6.3050748,4313.3,4313.2,4.012]
[1757042185687,1.80047953,4313.3,4313.2,4.012]
[1757042187478,4.11889002,4313.3,4313.2,0.116]
[1757042187662,3.54561049,4313.3,4313.2,4.012]
[1757042189061,1.2272,4313.3,4313.2,4.012]
[1757042189552,5.31850781,4313.2,4312.8,0.004]
[1757042189755,0.65457078,4313.1,4312.9,3.896]
[1757042189971,1.2262,4313.0,4312.9,3.896]
[1757042190764,4.2262,4313.0,4312.9,3.896]
[1757042190957,1.2262,4313.0,4312.9,3.896]
[1757042191421,6.54477175,4313.0,4312.9,3.896]
[1757042191692,7.49665381,4313.0,4312.9,3.896]
[1757042191987,3.7345,4313.0,4312.9,3.896]
[1757042193083,0.001,4313.3,4312.9,3.896]
[1757042193282,0.4434,4313.3,4312.9,3.896]
[1757042193481,0.4424,4313.2,4312.9,3.896]
[1757042193660,0.4424,4313.2,4312.9,6.21461954]
[1757042194076,0.4424,4313.2,4312.9,3.896]
[1757042194466,0.001,4313.3,4312.9,3.896]
[1757042194787,0.001,4313.3,4313.0,2.8140527]
[1757042194989,0.001,4313.3,4312.9,4.4569]
[1757042194990,0.2921,4313.0,4312.9,3.896]
[1757042195302,0.7345,4313.0,4312.9,8.55462551]
[1757042195861,0.7345,4313.0,4312.9,6.236]
[1757042196055,0.7345,4313.0,4312.9,8.55462551]
[1757042196662,0.7345,4313.0,4312.9,3.896]
[1757042196987,0.001,4313.3,4313.0,2.31857175]
[1757042197174,0.001,4313.3,4313.1,6.21451798]
[1757042197380,0.001,4313.3,4313.1,3.896]
[1757042197578,0.001,4313.3,4313.2,2.84456424]
[1757042198980,0.001,4313.3,4313.2,5.18456424]
[1757042199168,0.001,4313.3,4313.2,6.40588673]
[1757042200183,0.001,4313.3,4313.2,6.42508673]
[1757042200587,0.001,4313.3,4313.2,7.21708673]
[1757042201986,0.001,4313.3,4313.2,7.33308673]
[1757042202699,0.001,4313.3,4313.2,8.63308673]
[1757042206914,0.001,4313.3,4313.2,8.61388673]
[1757042207211,0.001,4313.3,4313.2,7.32638673]
[1757042207415,0.001,4313.3,4313.2,11.19078673]
[1757042207582,0.001,4313.3,4313.2,11.98278673]
[1757042207911,0.001,4313.3,4313.2,9.64278673]
[1757042208495,0.001,4313.3,4313.2,9.67338673]
[1757042208975,0.001,4313.3,4313.2,10.12628673]
[1757042209282,0.001,4313.3,4313.2,10.14548673]
[1757042209884,0.001,4313.3,4313.2,15.48548673]
[1757042210084,0.001,4313.5,4313.4,2.31835674]
[1757042210296,0.001,4313.5,4313.4,8.50444827]
[1757042210500,0.001,4313.5,4313.4,8.98396471]
[1757042210723,0.001,4313.5,4313.4,10.28396471]
[1757042210883,0.001,4313.5,4313.4,11.05676471]
[1757042211081,0.001,4313.5,4313.4,11.07596471]
[1757042212901,0.001,4313.5,4313.4,6.70886471]
[1757042213106,0.001,4313.5,4313.4,8.30435674]
[1757042214110,0.001,4313.5,4313.4,8.33495674]
[1757042214676,0.001,4313.5,4313.4,8.30435674]
[1757042214882,0.7316,4313.5,4313.4,8.30435674]
[1757042216412,0.7316,4313.5,4313.4,10.64435674]
[1757042216704,0.7316,4313.5,4313.4,12.37437109]
[1757042218525,0.4435,4313.5,4313.4,12.37437109]
[1757042218943,0.7316,4313.5,4313.4,12.37437109]
[1757042219635,0.7316,4313.5,4313.4,17.71237109]
[1757042221110,0.001,4313.5,4313.4,17.71237109]
[1757042222346,0.7316,4313.5,4313.4,17.71237109]
[1757042223935,1.2236,4313.5,4313.4,5.338]
[1757042224102,1.2236,4313.5,4313.4,9.231]
[1757042225829,1.2236,4313.5,4313.4,11.54935674]
[1757042230118,1.2236,4313.5,4313.4,9.231]
[1757042231421,1.2236,4313.5,4313.4,11.54935674]
[1757042233627,1.2236,4313.5,4313.4,9.231]
[1757042233822,1.2236,4313.5,4313.4,11.54935674]
[1757042234229,1.2236,4313.5,4313.4,9.231]
[1757042234849,1.2236,4313.5,4313.4,11.54935674]
[1757042235164,1.2236,4313.5,4313.4,9.231]
[1757042235661,1.2236,4313.5,4313.4,11.54935674]
[1757042236362,0.001,4313.5,4313.4,11.54935674]
[1757042236521,0.001,4313.5,4313.4,12.70799359]
[1757042237946,0.4735,4313.5,4313.4,12.70799359]
[1757042239653,0.001,4313.5,4313.4,12.70799359]
[1757042242855,0.4735,4313.5,4313.4,12.70799359]
[1757042243449,0.7682,4313.5,4313.4,12.70799359]
[1757042245653,0.7682,4313.5,4313.4,15.04799359]
[1757042247354,0.7682,4313.5,4313.4,13.88935674]
[1757042248529,1.222,4313.5,4313.4,13.88935674]
[1757042248741,1.222,4313.5,4313.4,11.54935674]
[1757042250340,1.222,4313.5,4313.4,7.65635674]
[1757042250541,1.222,4313.5,4313.4,9.23]
[1757042250733,1.222,4313.5,4313.4,11.54835674]
[1757042252966,0.7682,4313.5,4313.4,11.54835674]
[1757042253865,0.001,4313.5,4313.4,11.54835674]
[1757042254866,0.001,4313.5,4313.4,14.68563818]
[1757042255442,0.001,4313.5,4313.4,14.65503818]
[1757042257157,0.001,4313.5,4313.4,15.96343818]
[1757042257341,0.001,4313.5,4313.4,15.98263818]
[1757042258547,0.001,4313.5,4313.4,17.28263818]
[1757042258746,0.001,4313.5,4313.4,19.62263818]
[1757042258985,0.001,4313.8,4313.7,2.31819551]
[1757042259162,0.001,4313.8,4313.7,10.84028543]
[1757042259477,0.001,4313.8,4313.7,12.22860348]
[1757042259666,0.001,4313.8,4313.7,13.52860348]
[1757042260874,0.001,4313.8,4313.7,13.50940348]
[1757042263074,0.001,4313.8,4313.7,12.23310348]
[1757042263075,0.7365,4313.8,4313.7,12.23310348]
[1757042263268,1.1885,4313.8,4313.7,6.07419551]
[1757042263446,1.1885,4313.8,4313.7,0.116]
[1757042263649,1.1885,4313.8,4313.7,6.32519551]
[1757042268153,0.2997,4313.8,4313.7,6.32519551]
[1757042268348,0.7365,4313.8,4313.7,6.32519551]
[1757042269376,1.1885,4313.8,4313.7,0.116]
[1757042269655,1.83228536,4313.8,4313.7,4.006]
[1757042270202,1.1885,4313.8,4313.7,4.006]
[1757042270653,0.7365,4313.8,4313.7,6.32419551]
[1757042272790,1.1885,4313.8,4313.7,6.32419551]
[1757042274399,0.7365,4313.8,4313.7,6.32419551]
[1757042277966,0.001,4313.8,4313.7,6.32419551]
[1757042278466,0.4378,4313.8,4313.7,6.32419551]
[1757042278666,0.7365,4313.8,4313.7,6.32419551]
[1757042279690,0.001,4313.8,4313.7,6.32419551]
[1757042281282,0.001,4313.8,4313.7,9.96424356]
[1757042281485,0.001,4313.8,4313.7,10.41794356]
[1757042282401,0.001,4313.8,4313.7,11.22914356]
[1757042283171,0.001,4314.2,4313.9,2.31808804]
[1757042283395,0.001,4314.2,4314.0,4.70518034]
[1757042283605,0.001,4314.2,4314.1,1.98821684]
[1757042283778,0.001,4314.2,4314.1,4.75989741]
[1757042283979,0.001,4314.2,4314.1,4.77909741]
[1757042284180,0.001,4314.2,4314.1,4.75989741]
[1757042284509,0.001,4314.2,4314.1,4.27559741]
[1757042284869,0.7365,4314.2,4314.1,7.37259741]
[1757042285074,0.7365,4314.2,4314.1,3.48359741]
[1757042285289,1.1885,4314.2,4314.1,6.32298057]
[1757042285915,1.1885,4314.2,4314.1,0.116]
[1757042286326,1.1885,4314.2,4314.1,4.005]
[1757042286806,1.1885,4314.2,4314.1,0.116]
[1757042287107,1.1885,4314.2,4314.1,4.005]
[1757042287286,2.36417272,4314.2,4314.1,4.005]
[1757042287482,2.36417272,4314.2,4314.1,3.889]
[1757042287483,12.18739882,4314.2,4314.1,3.889]
[1757042288209,9.86947198,4314.2,4314.1,3.889]
[1757042288606,12.18739882,4314.2,4314.1,3.889]
[1757042288810,9.86947198,4314.2,4314.1,3.889]
[1757042289213,12.18739882,4314.2,4314.1,3.889]
[1757042290214,2.3180343,4314.0,4313.9,0.116]
[1757042290387,2.34120566,4314.0,4313.5,0.004]
[1757042290588,7.81829926,4313.6,4313.5,0.004]
[1757042290805,7.81829926,4313.6,4313.5,3.893]
[1757042291009,9.8369071,4313.6,4313.5,3.893]
[1757042291407,12.15515635,4313.6,4313.5,3.893]
[1757042294220,12.3283981,4313.6,4313.5,3.893]
[1757042298819,7.82309884,4313.6,4313.5,3.893]
[1757042299021,12.3283981,4313.6,4313.5,3.893]
[1757042303007,12.3283981,4313.6,4313.0,0.004]
[1757042303008,2.31843677,4313.3,4313.0,0.004]
[1757042303320,7.62129926,4313.1,4313.0,0.004]
[1757042303525,7.93429926,4313.1,4313.0,0.004]
[1757042303729,4.3426,4313.1,4313.0,0.004]
[1757042303919,6.661118,4313.1,4313.0,0.004]
[1757042307013,0.61764175,4313.6,4313.0,4.5349]
[1757042307226,4.50529926,4313.1,4313.0,4.5349]
[1757042307429,0.61764175,4313.6,4313.0,4.5349]
[1757042307430,4.50529926,4313.4,4313.0,5.16209]
[1757042307713,3.0,4313.3,4313.1,0.4953]
[1757042308112,3.0,4313.3,4313.2,0.0306]
[1757042308316,3.0,4313.3,4313.2,0.5259]
[1757042308749,3.0,4313.3,4313.2,0.0306]
[1757042308952,3.0,4313.3,4313.0,4.009]
[1757042309119,4.50529926,4313.1,4313.0,4.009]
[1757042309319,4.50529926,4313.1,4313.0,4.0396]
[1757042310145,7.50529926,4313.1,4313.0,4.0396]
[1757042310445,8.26269926,4313.1,4313.0,4.009]
[1757042310639,9.31322919,4313.1,4313.0,4.009]
[1757042310841,8.73189926,4313.1,4313.0,4.009]
[1757042311043,8.26269926,4313.1,4313.0,4.009]
[1757042311351,7.94969926,4313.1,4313.0,4.009]
[1757042311739,7.50529926,4313.1,4313.0,4.009]
[1757042313118,7.81829926,4313.1,4313.0,4.009]
[1757042313323,8.26269926,4313.1,4313.0,4.009]
[1757042313823,7.50529926,4313.1,4313.0,4.009]
[1757042314045,7.50529926,4313.1,4313.0,0.12]
[1757042314046,8.26269926,4313.1,4313.0,0.12]
[1757042314318,8.26269926,4313.1,4313.0,2.673]
[1757042314520,7.50529926,4313.1,4313.0,2.673]
[1757042316951,3.0,4313.1,4313.0,2.673]
[1757042317154,3.0,4313.1,4313.0,2.7036]
[1757042317365,3.0,4313.1,4313.0,3.1989]
[1757042317731,3.0,4313.1,4313.0,2.7036]
[1757042319073,3.0,4313.1,4313.0,3.1801]
[1757042319461,3.0,4313.1,4313.0,3.90367576]
[1757042320371,3.0,4313.1,4313.0,3.42717576]
[1757042320664,3.0,4313.1,4313.0,2.673]
[1757042322332,3.0,4313.1,4313.0,5.49867175]
[1757042322763,0.001,4313.8,4313.3,2.31840501]
[1757042322978,0.001,4313.8,4313.4,6.20632876]
[1757042323281,0.001,4313.8,4313.7,0.116]
[1757042323478,0.001,4313.8,4313.7,5.7426]
[1757042323680,0.001,4313.8,4313.7,6.84101]
[1757042323981,0.001,4313.8,4313.7,9.15920551]
[1757042327164,0.001,4313.8,4313.7,9.17840551]
[1757042327773,0.001,4313.8,4313.7,9.15920551]
[1757042330547,0.001,4313.8,4313.7,15.30940551]
[1757042330762,0.001,4313.8,4313.7,19.81470477]
[1757042331456,0.001,4313.8,4313.7,21.11470477]
[1757042334664,0.001,4313.8,4313.7,23.45470477]
[1757042335275,0.001,4313.8,4313.7,15.04220551]
[1757042335474,0.001,4313.8,4313.7,18.92920551]
[1757042335671,0.001,4313.8,4313.7,15.04220551]
[1757042335856,0.001,4313.8,4313.7,18.92920551]
[1757042336257,0.001,4313.8,4313.7,18.81320551]
[1757042336588,0.001,4313.8,4313.7,18.94840551]
[1757042337579,0.001,4313.8,4313.7,23.45370477]
[1757042337780,0.001,4313.8,4313.7,26.45370477]
[1757042337991,1e-08,4314.2,4314.1,3.10998057]
[1757042338188,1e-08,4314.2,4314.1,7.75750855]
[1757042338368,1e-08,4314.2,4314.1,8.39980855]
[1757042338568,1e-08,4314.2,4314.1,9.68060855]
[1757042340985,0.001,4314.3,4314.2,5.44992683]
[1757042341184,0.001,4314.3,4314.2,7.89193029]
[1757042341487,0.001,4314.3,4314.2,5.6985303]
[1757042341659,0.001,4314.3,4314.2,6.9985303]
[1757042344086,0.4541,4315.5,4314.8,0.792]
[1757042344289,0.4791,4315.8,4314.8,9.01457572]
[1757042344457,0.4541,4315.5,4314.8,9.63767572]
[1757042344661,0.4541,4315.3,4314.8,9.63667572]
[1757042344885,0.4541,4315.3,4314.8,10.93667572]
[1757042345088,0.4541,4315.2,4314.8,10.42957572]
[1757042345276,0.4541,4315.2,4314.8,10.46017572]
[1757042345962,0.4541,4315.6,4314.8,10.93667572]
[1757042346767,0.4541,4315.3,4314.8,10.93667572]
[1757042349499,0.001,4315.4,4314.8,10.93667572]
[1757042350378,0.4586,4315.4,4314.8,10.93667572]
[1757042350901,0.001,4315.4,4314.8,10.93667572]
[1757042351309,0.001,4315.4,4314.8,10.95587572]
[1757042351481,0.001,4315.4,4314.8,10.93667572]
[1757042351686,0.4576,4316.2,4315.7,0.792]
[1757042351880,0.4576,4316.1,4316.0,2.31696014]
[1757042352218,0.7628,4316.1,4316.0,4.78125754]
[1757042352368,0.466,4316.6,4316.1,2.31688047]
[1757042352572,1e-08,4316.8,4316.3,0.792]
[1757042352772,1e-08,4316.8,4316.7,3.10858442]
[1757042353074,1e-08,4316.8,4316.7,8.69958442]
[1757042353292,0.76280001,4316.8,4316.7,11.10121204]
[1757042355474,0.45760001,4316.8,4316.7,11.10121204]
[1757042356085,5.24072205,4318.6,4317.7,2.31604789]
[1757042356284,5.24072205,4318.6,4317.7,7.90704789]
[1757042356581,0.3302,4317.8,4317.7,7.90704789]
[1757042356784,0.7952,4317.8,4317.7,7.90704789]
[1757042357603,0.3302,4317.8,4317.7,7.90704789]
[1757042357899,0.3302,4317.8,4317.7,9.72136573]
[1757042358802,5.24072205,4319.1,4317.7,9.72136573]
[1757042358803,0.465,4318.5,4318.4,2.31567247]
[1757042358972,0.7702,4318.5,4318.4,4.02267247]
[1757042359177,0.7702,4318.5,4318.4,7.90567247]
[1757042359377,1.2278,4318.5,4318.4,7.90567247]
[1757042359976,1.35308,4318.5,4318.4,1.707]
[1757042360304,1.35308,4318.5,4318.4,5.59]
[1757042362588,1.35308,4318.5,4318.4,7.90567247]
[1757042362785,1.35308,4318.5,4318.4,8.02167247]
[1757042364413,1.35308,4318.5,4318.4,5.706]
[1757042365522,1.35408,4318.5,4318.4,5.706]
[1757042366820,1.2288,4318.5,4318.4,5.706]
[1757042367014,1.2288,4318.5,4318.4,8.02167247]
[1757042367519,0.7638,4318.5,4318.4,8.02167247]
[1757042369028,1.2288,4318.5,4318.4,8.02167247]
[1757042369895,1.2288,4318.5,4318.4,1.823]
[1757042370100,1.35418,4318.5,4318.4,5.705]
[1757042370300,1.2288,4318.5,4318.4,8.02067247]
[1757042371110,1.2288,4318.5,4318.4,5.705]
[1757042373622,1.2288,4318.5,4318.4,1.823]
[1757042373823,1.2288,4318.5,4318.4,5.705]
[1757042374203,0.001,4318.5,4318.4,8.02067247]
[1757042374534,0.001,4318.5,4318.4,5.705]
[1757042374535,1.2288,4318.5,4318.4,5.705]